bitfinex/quotes_ETHUSD_20250107
["timestamp","ask_amount","ask_price","bid_price","bid_amount"]
[1736263063699,0.02473075,3527.3,3525.6,0.0283592]
[1736263063901,0.02473075,3527.3,3524.2,1.5105]
[1736263063902,0.55,3526.7,3524.2,1.5105]
[1736263064100,2.83591,3526.3,3523.7,2.83792]
[1736263064351,0.55,3525.9,3523.5,1.5105]
[1736263064502,1.6641,3525.7,3523.7,0.02837212]
[1736263064701,0.02473075,3525.6,3524.2,2.8375]
[1736263064902,5.69513075,3525.6,3523.5,1.5105]
[1736263065254,5.6704,3525.6,3524.2,2.83749]
[1736263065397,5.6704,3525.6,3525.0,2.83686]
[1736263065753,5.6704,3525.6,3525.5,0.0075]
[1736263065896,5.6629,3525.6,3525.5,2.84397]
[1736263066096,5.6629,3525.6,3525.5,0.0075]
[1736263066353,5.6629,3525.6,3524.8,2.83697]
[1736263066531,0.02473075,3525.5,3523.4,5.9888406]
[1736263066709,0.02473075,3525.5,3523.7,0.028369]
[1736263066910,5.6629,3525.6,3525.1,2.83673]
[1736263067133,5.6629,3525.6,3525.2,0.028363]
[1736263067333,5.6629,3525.6,3525.5,0.0075]
[1736263067541,5.6629,3525.6,3524.7,2.83711]
[1736263067719,0.02473075,3525.5,3524.8,35.0]
[1736263068101,0.02473075,3525.5,3523.6,0.80563842]
[1736263068102,2.83663,3525.3,3523.6,0.80563842]
[1736263068399,1.5612,3525.1,3523.6,0.60563842]
[1736263068600,2.86164075,3525.0,3523.2,35.0]
[1736263068864,3.0,3524.5,3523.1,0.01]
[1736263069066,2.83779,3523.9,3523.1,0.01]
[1736263069220,0.02473075,3523.8,3523.1,0.01]
[1736263069636,5.68763075,3523.8,3523.1,0.01]
[1736263069866,5.68763075,3523.8,3521.7,4.37069]
[1736263069867,5.6629,3523.8,3522.0,2.83929]
[1736263070187,5.6629,3523.8,3521.0,7.5158406]
[1736263070333,2.07739,3523.7,3521.1,35.0]
[1736263070536,2.8384,3523.2,3521.1,35.0]
[1736263070844,2.83849,3523.0,3521.1,35.0]
[1736263071062,2.83949,3521.8,3519.8,0.00284]
[1736263071388,4.50285,3521.7,3519.8,0.00284]
[1736263071605,0.45541044,3521.6,3520.1,35.0]
[1736263071937,0.57473075,3521.5,3519.8,0.00284]
[1736263072139,6.5388406,3521.4,3519.8,0.00284]
[1736263072338,1.5032,3520.8,3519.8,0.00284]
[1736263072573,0.02473075,3520.7,3519.8,0.00284]
[1736263072757,5.6629,3520.8,3520.1,0.02840586]
[1736263072963,1.6034,3522.2,3520.2,0.02840119]
[1736263073184,1.6034,3522.2,3520.9,2.84018]
[1736263073349,1.6034,3522.2,3519.8,0.00284]
[1736263073350,0.02473075,3522.1,3520.3,2.84059]
[1736263073531,0.02473075,3522.1,3519.8,0.00284]
[1736263073737,1.6034,3522.2,3520.3,2.84066]
[1736263074039,1.6034,3523.0,3522.1,35.0]
[1736263074375,2.8375,3524.3,3520.0,0.2518268]
[1736263074376,1.6034,3522.8,3520.0,0.2518268]
[1736263074573,1.6034,3522.8,3520.4,0.0075]
[1736263074782,1.6034,3522.8,3522.3,35.0]
[1736263074937,1.589,3524.8,3522.3,35.0]
[1736263075142,1.589,3524.8,3521.5,3.0]
[1736263075341,2.83749,3524.3,3521.5,0.45862]
[1736263075568,2.838,3523.6,3523.3,35.0]
[1736263075771,2.838,3523.6,3520.5,1.5163]
[1736263076075,5.9888406,3523.2,3520.5,1.5163]
[1736263076262,2.83855,3523.0,3521.1,2.83996]
[1736263076574,2.86330075,3522.9,3521.0,2.84006]
[1736263076938,0.02473075,3522.9,3521.1,0.02839602]
[1736263077221,0.02473075,3522.9,3520.1,1.5302]
[1736263077222,2.86314075,3523.1,3520.9,2.84018]
[1736263077382,0.02473075,3523.0,3520.1,1.5302]
[1736263077536,3.0,3523.5,3521.2,35.0]
[1736263077741,0.61101182,3523.4,3521.3,0.02839295]
[1736263078066,1.6539,3523.3,3521.5,2.83969]
[1736263078265,1.6539,3523.3,3522.9,0.0075]
[1736263078564,1.5855,3524.6,3523.0,35.0]
[1736263078754,0.02473075,3524.5,3523.1,2.8384]
[1736263078937,1.5855,3524.6,3523.5,2.83801]
[1736263079137,1.5855,3524.6,3523.6,0.02837498]
[1736263079339,0.02473075,3525.2,3523.7,35.0]
[1736263079563,0.17784382,3525.2,3523.7,35.0]
[1736263079778,3.17784382,3525.2,3522.2,5.9888406]
[1736263079964,0.55,3524.8,3522.8,2.83857]
[1736263080164,0.02473075,3524.7,3523.2,0.0075]
[1736263080365,0.02473075,3524.7,3522.9,35.0]
[1736263080685,0.02473075,3524.9,3523.1,0.0075]
[1736263080993,0.02473075,3524.9,3523.0,0.0075]
[1736263081153,2.83711,3524.8,3522.9,37.83854]
[1736263081351,0.55,3524.5,3522.0,2.83926]
[1736263081555,0.55,3524.1,3521.8,2.83943]
[1736263081853,0.55,3524.1,3520.8,35.0]
[1736263081854,1.5064,3523.6,3520.8,35.0]
[1736263082065,2.8383,3523.3,3520.6,1.5547]
[1736263082284,0.02473075,3523.2,3520.8,2.84026]
[1736263082554,0.02473075,3523.3,3521.0,8.8289406]
[1736263082784,0.02473075,3523.5,3522.8,2.83863]
[1736263082993,1.5064,3523.6,3522.9,2.86694273]
[1736263083203,1.5064,3523.6,3522.6,2.8388]
[1736263083395,1.64993075,3524.3,3522.7,35.02838252]
[1736263083599,1.6252,3524.3,3522.7,35.0]
[1736263083768,0.02473075,3525.5,3524.6,0.0075]
[1736263083769,1.6252,3525.0,3524.6,0.0075]
[1736263083967,1.59,3527.0,3523.4,5.9888406]
[1736263083968,1.6252,3525.7,3524.8,2.83703]
[1736263084279,1.6252,3525.7,3525.0,0.0075]
[1736263084459,1.6206,3526.3,3526.0,0.0075]
[1736263084662,1.6206,3527.1,3525.4,0.0075]
[1736263084855,0.02473075,3527.0,3525.7,3.0]
[1736263085097,0.02473075,3528.0,3526.6,5.9888406]
[1736263085297,0.00279337,3528.2,3528.1,0.0075]
[1736263086098,0.00279337,3528.2,3526.0,5.9888406]
[1736263086281,0.00279337,3528.2,3526.0,0.59888406]
[1736263086282,0.28470434,3528.1,3526.0,0.59888406]
[1736263086483,0.28470434,3528.1,3525.6,1.5614]
[1736263086484,0.00279337,3528.2,3526.1,35.0]
[1736263086655,0.02752412,3528.2,3526.1,35.0]
[1736263086852,2.83457,3527.9,3525.8,2.83621]
[1736263087057,2.83457,3527.9,3524.7,2.83709]
[1736263087058,0.02473075,3527.8,3524.7,2.83709]
[1736263087303,3.0,3527.0,3524.7,2.83704]
[1736263087468,0.02473075,3526.9,3524.2,0.59888406]
[1736263087666,0.02473075,3527.6,3524.2,6.58772466]
[1736263087968,0.02473075,3527.6,3524.8,8.8258106]
[1736263087969,1.6666,3527.6,3524.8,8.8258106]
[1736263088172,1.6666,3527.6,3524.2,0.59888406]
[1736263088173,0.02473075,3527.5,3525.4,5.9888406]
[1736263088497,1.6666,3527.6,3526.2,0.0075]
[1736263088693,0.02752412,3528.2,3526.5,2.83567]
[1736263088694,0.00279337,3528.2,3526.5,2.83567]
[1736263088879,0.00279337,3528.2,3526.6,2.83552]
[1736263089104,0.00279337,3528.2,3526.8,3.0]
[1736263089258,0.00529337,3528.4,3528.2,2.83425]
[1736263089458,0.00529337,3528.4,3528.3,0.03583634]
[1736263089656,3.37e-06,3528.4,3528.3,0.32284497]
[1736263089866,1.57653075,3530.7,3530.1,0.0075]
[1736263090102,1.5518,3530.7,3530.1,0.0075]
[1736263090316,0.02473075,3530.6,3530.1,0.0075]
[1736263090601,1.5518,3530.7,3529.0,0.0075]
[1736263090894,1.5518,3530.7,3528.8,0.02832615]
[1736263090895,1.5518,3530.7,3528.9,2.83374]
[1736263091097,1.5518,3530.7,3528.7,1.6296]
[1736263091098,1.5518,3530.7,3529.3,0.0075]
[1736263091293,2.84013,3533.4,3530.4,0.0075]
[1736263091294,1.5026,3532.4,3530.4,0.0075]
[1736263091499,0.02473075,3532.3,3530.9,0.0075]
[1736263092224,0.02473075,3532.3,3530.7,0.0075]
[1736263092559,2.83129,3532.0,3530.7,0.0075]
[1736263092754,4.41906,3533.5,3528.6,5.99278273]
[1736263092755,1.5388,3531.8,3528.6,5.99278273]
[1736263092981,0.02473075,3531.7,3529.2,5.99278273]
[1736263093277,0.02473075,3531.7,3529.6,2.83318]
[1736263093486,0.02473075,3531.7,3530.7,0.0075]
[1736263093689,1.5388,3531.8,3530.7,0.03581859]
[1736263093854,1.5388,3531.8,3530.7,2.83977]
[1736263094068,1.5388,3531.8,3530.2,2.83262]
[1736263094069,1.5388,3531.8,3531.2,0.0075]
[1736263094402,1.5388,3531.8,3530.1,1.6465]
[1736263094403,0.02473075,3531.7,3531.1,0.0075]
[1736263094601,0.18108383,3531.7,3531.1,0.0075]
[1736263094901,1.609,3531.6,3528.3,1.92200863]
[1736263095070,1.5814,3530.8,3528.4,2.83412]
[1736263095271,4.5814,3530.6,3527.4,1.5318]
[1736263095473,1.5814,3529.6,3526.9,5.99278273]
[1736263095775,0.02473075,3529.5,3527.0,0.75245827]
[1736263096009,1.5814,3529.6,3527.6,2.83478]
[1736263096326,0.02473075,3530.8,3527.1,0.02833577]
[1736263096327,0.02473075,3530.8,3528.2,1.5895]
[1736263096482,0.02473075,3531.6,3529.2,3.0]
[1736263096685,0.02473075,3532.7,3529.4,3.0]
[1736263096883,2.83064,3532.8,3530.1,3.0]
[1736263097121,0.02473075,3532.7,3530.2,0.02831556]
[1736263097441,3.0,3533.1,3530.6,35.0]
[1736263097585,0.61023282,3533.0,3530.7,0.02831995]
[1736263097890,0.61023282,3533.0,3531.0,2.83204]
[1736263097891,2.85524075,3533.0,3531.0,2.83204]
[1736263098223,2.85524075,3533.0,3531.2,0.0075]
[1736263098519,0.28552408,3532.9,3531.1,35.0]
[1736263098680,0.02473075,3532.8,3529.6,1.5265]
[1736263098887,2.83029,3533.2,3529.7,0.02832243]
[1736263099114,2.83049,3533.0,3530.0,3.0]
[1736263099316,0.01,3533.4,3530.0,3.0]
[1736263099317,1.5954,3532.8,3530.2,0.0075]
[1736263099515,0.02473075,3532.7,3530.6,3.0]
[1736263099761,1.5954,3532.8,3531.1,5.99278273]
[1736263099901,0.02473075,3532.7,3531.0,2.83204]
[1736263100102,0.57473075,3532.7,3529.8,5.99278273]
[1736263100318,0.55,3532.3,3529.2,5.99278273]
[1736263100586,2.83137,3531.9,3529.7,0.02832273]
[1736263100826,2.83191,3531.2,3529.3,2.83336]
[1736263101125,0.02473075,3531.1,3528.9,1.56]
[1736263101293,0.02473075,3531.6,3530.4,2.83252]
[1736263101495,1.5034,3532.5,3530.6,0.0075]
[1736263101696,0.02473075,3532.4,3531.1,0.0075]
[1736263102239,0.02473075,3532.4,3530.7,0.0075]
[1736263102934,0.55,3531.8,3529.3,5.99278273]
[1736263103089,0.02473075,3531.7,3529.0,1.6619]
[1736263103291,0.02473075,3531.7,3528.2,1.6619]
[1736263103292,0.55,3531.2,3528.2,1.6619]
[1736263103515,3.0,3530.6,3527.1,1.6619]
[1736263103714,1.5034,3529.7,3527.5,1.133864]
[1736263104018,1.5034,3529.7,3527.6,35.02833581]
[1736263104355,1.5034,3529.7,3527.8,2.83456]
[1736263104510,1.5034,3529.7,3527.9,2.74591002]
[1736263104712,1.5034,3529.7,3529.4,2.83332]
[1736263104984,0.02473075,3530.9,3529.6,0.0075]
[1736263105190,0.02473075,3531.5,3529.8,0.0075]
[1736263105337,0.02473075,3531.5,3528.9,2.83369]
[1736263105686,2.83181,3531.3,3529.1,2.83357]
[1736263105815,2.83225,3530.8,3529.2,35.02833026]
[1736263106185,0.5625654,3532.3,3529.3,4.83264093]
[1736263106385,0.02473075,3532.2,3529.5,3.0]
[1736263106522,0.02473075,3532.5,3529.8,2.83297]
[1736263106718,3.02473075,3532.5,3529.3,7.66599093]
[1736263107046,3.0,3531.4,3528.8,4.83264093]
[1736263107353,0.02473075,3531.3,3528.9,0.02833132]
[1736263107651,2.83062,3532.8,3528.5,0.0283253]
[1736263107652,4.83264093,3529.9,3528.5,0.0283253]
[1736263107814,4.83264093,3529.4,3528.3,35.0]
[1736263108013,0.02473075,3529.3,3528.3,35.0]
[1736263109091,0.02473075,3529.3,3528.4,0.02833915]
[1736263109357,0.02473075,3529.6,3528.5,35.0]
[1736263109715,4.83264093,3529.4,3526.5,2.83562]
[1736263109916,2.83451,3528.0,3526.3,2.03363506]
[1736263110161,4.85737168,3527.9,3526.4,35.0]
[1736263110329,4.83264093,3527.3,3526.4,35.0]
[1736263110529,4.83264093,3526.8,3525.0,1.6193]
[1736263110728,1.5615,3526.6,3525.1,2.83679]
[1736263110949,0.02473075,3526.5,3525.2,35.0]
[1736263111272,4.83264093,3526.3,3525.3,0.02835924]
[1736263111416,1.5615,3526.6,3525.6,2.83638]
[1736263111618,1.5615,3526.6,3525.7,0.02835663]
[1736263111822,1.5615,3526.6,3525.3,3.0]
[1736263112031,4.83264093,3526.3,3525.2,35.0]
[1736263112246,0.02473075,3526.2,3523.7,1.6193]
[1736263112559,1.5615,3525.2,3523.7,2.8379]
[1736263112864,6.39414093,3525.8,3524.0,2.83761]
[1736263113020,6.39414093,3525.8,3524.9,2.83691]
[1736263113320,2.83657,3525.4,3523.5,2.19956739]
[1736263113658,4.83264093,3524.7,3523.7,35.23533654]
[1736263113831,7.63023209,3525.1,3523.7,35.0]
[1736263114031,7.63023209,3525.1,3523.1,0.01]
[1736263114032,1.6538,3524.3,3523.1,0.01]
[1736263114249,1.6538,3524.3,3521.0,0.26610225]
[1736263114250,1.6463,3522.9,3521.0,0.26610225]
[1736263114564,0.02473075,3522.8,3522.1,1.135283]
[1736263114858,0.02473075,3522.8,3520.1,0.1738932]
[1736263114859,0.02473075,3522.8,3521.7,2.83947]
[1736263115007,0.02473075,3523.6,3521.9,1.5804]
[1736263115231,0.02473075,3525.0,3522.5,2.83889]
[1736263115368,6.01803209,3526.1,3524.5,2.83721]
[1736263115564,6.01803209,3526.7,3524.4,3.0]
[1736263115805,0.02473075,3526.6,3525.4,2.83651]
[1736263115978,2.83561,3526.6,3525.5,0.03585715]
[1736263116179,6.01803209,3526.1,3526.0,35.0]
[1736263116809,6.01803209,3526.1,3523.5,1.5804]
[1736263116970,0.02473075,3526.0,3523.7,3.0]
[1736263117169,2.83629,3525.8,3525.3,35.0]
[1736263117492,1.5035,3524.8,3522.7,1.5744]
[1736263117695,6.04276284,3524.7,3522.4,2.83896]
[1736263117878,6.01803209,3524.1,3522.8,35.0]
[1736263118080,0.02473075,3524.0,3522.8,35.0]
[1736263118308,6.01803209,3524.7,3523.3,2.83821]
[1736263118482,1.5035,3524.8,3523.4,3.02837595]
[1736263118680,0.02473075,3524.7,3523.4,0.02837595]
[1736263118880,2.83729,3524.5,3522.5,2.83886]
[1736263119112,6.01803209,3524.1,3522.6,35.0]
[1736263119419,0.02473075,3524.0,3522.6,35.0]
[1736263119636,1.5035,3524.3,3522.8,3.0]
[1736263119818,0.02473075,3524.2,3521.7,2.83952]
[1736263120109,1.5035,3524.3,3522.8,2.83862]
[1736263120110,1.496,3524.3,3522.8,2.83862]
[1736263120324,1.496,3524.3,3523.1,3.0]
[1736263120529,1.496,3524.3,3523.2,0.02837316]
[1736263120830,6.01803209,3525.4,3523.5,2.83801]
[1736263121029,6.01803209,3524.8,3522.8,1.5744]
[1736263121256,0.02473075,3524.7,3524.0,0.015]
[1736263121390,0.02473075,3525.3,3524.0,0.015]
[1736263121586,0.02473075,3525.3,3524.4,2.83729]
[1736263121949,0.283629,3525.7,3524.6,0.015]
[1736263122228,0.283629,3525.7,3523.3,3.0]
[1736263122229,6.01803209,3526.6,3524.8,0.015]
[1736263122446,8.85412209,3526.0,3524.1,2.83754]
[1736263122740,0.01723075,3525.9,3525.2,2.83667]
[1736263122888,1.589,3528.2,3525.0,0.015]
[1736263123194,1.589,3528.2,3524.9,35.0]
[1736263123195,1.6585,3527.1,3525.2,6.01803209]
[1736263123395,1.6585,3527.1,3525.3,2.86495977]
[1736263123723,0.01723075,3527.0,3525.4,35.0]
[1736263123909,0.01723075,3527.0,3524.6,6.01803209]
[1736263123910,1.6189,3526.9,3524.6,6.01803209]
[1736263124112,1.5863,3526.7,3524.6,6.01803209]
[1736263124313,1.5863,3525.3,3523.6,2.83797]
[1736263124625,0.01723075,3525.2,3523.7,0.02837062]
[1736263124822,0.01723075,3525.2,3523.5,0.0283716]
[1736263125032,1.5863,3525.3,3524.2,0.0075]
[1736263125233,1.5788,3525.3,3524.9,0.015]
[1736263125398,0.01723075,3527.1,3525.5,0.015]
[1736263125732,2.83339,3529.4,3525.9,2.83607]
[1736263125733,2.83468,3527.8,3525.9,2.83607]
[1736263125889,0.30069875,3527.7,3526.1,0.015]
[1736263126211,2.83481,3527.6,3526.3,0.015]
[1736263126524,2.83481,3527.6,3525.4,6.01803209]
[1736263126525,2.83494,3527.4,3525.4,6.01803209]
[1736263126750,0.01723075,3527.3,3525.7,0.015]
[1736263126884,2.83492,3527.5,3525.7,0.04335773]
[1736263127095,3.01,3528.4,3526.7,2.83545]
[1736263127096,2.84416,3528.4,3526.7,2.83545]
[1736263127358,0.01,3528.4,3527.0,0.015]
[1736263127797,2.83443,3528.1,3526.5,35.0]
[1736263127998,2.83436,3528.2,3526.7,0.015]
[1736263128300,1.5473,3528.3,3526.6,0.015]
[1736263128629,1.5473,3528.3,3526.6,3.63039559]
[1736263128826,1.5473,3528.3,3526.9,0.015]
[1736263128827,1.5398,3528.3,3526.9,0.015]
[1736263128983,0.01,3528.4,3528.2,6.02050764]
[1736263129183,4.38357838,3531.6,3529.5,2.83318]
[1736263129426,3.86636892,3531.5,3529.7,0.015]
[1736263129612,0.54183273,3531.4,3529.7,0.015]
[1736263129971,0.54183273,3531.4,3528.1,3.0]
[1736263130167,0.57899681,3531.7,3529.3,3.0]
[1736263130328,2.83196,3531.2,3529.5,0.015]
[1736263130663,2.83254,3530.4,3528.7,35.0]
[1736263130968,6.00550764,3531.3,3528.7,35.0]
[1736263131129,6.00550764,3530.7,3528.7,35.0]
[1736263131333,6.00550764,3530.7,3527.9,1.5785]
[1736263131334,6.00550764,3530.7,3528.8,0.02833292]
[1736263131534,2.83255,3530.4,3528.7,2.8339]
[1736263131843,6.00550764,3530.7,3528.1,35.0]
[1736263131844,1.5168,3530.2,3528.1,35.0]
[1736263132046,0.55,3530.0,3527.3,2.83502]
[1736263132229,6.00550764,3530.1,3527.4,0.02833722]
[1736263132433,1.5168,3530.2,3528.7,2.83387]
[1736263132660,1.5168,3530.2,3528.9,0.015]
[1736263132858,2.83278,3530.1,3528.9,0.015]
[1736263133130,1.5168,3530.2,3528.2,2.83423]
[1736263133444,1.5168,3530.2,3529.5,0.015]
[1736263133672,1.5168,3530.2,3529.5,0.04333007]
[1736263133973,1.5168,3530.2,3528.1,2.83432]
[1736263133974,0.55,3530.1,3528.1,2.83432]
[1736263134267,0.55,3530.1,3527.1,2.83511]
[1736263134268,2.8334,3529.4,3527.1,2.83511]
[1736263134472,2.83342,3529.3,3526.6,0.60205076]
[1736263134688,2.83384,3528.8,3526.6,0.60205076]
[1736263134908,1.5168,3529.4,3527.4,2.83487]
[1736263135204,1.5093,3529.4,3528.1,2.83436]
[1736263135471,6.00550764,3531.4,3528.0,1.6378]
[1736263135633,2.83229,3530.8,3529.2,2.83348]
[1736263135969,2.83229,3530.8,3528.7,37.83387]
[1736263135970,4.83409051,3530.7,3528.7,35.0]
[1736263136162,4.83409051,3530.7,3529.3,0.015]
[1736263136362,4.83409051,3530.7,3529.3,0.04332862]
[1736263136538,7.66600051,3531.2,3529.5,2.83321]
[1736263136734,4.83409051,3531.2,3528.8,3.0]
[1736263136935,4.83409051,3530.7,3528.1,2.83438]
[1736263137181,4.83409051,3530.7,3528.0,1.6378]
[1736263137182,2.83279,3530.1,3528.5,2.83404]
[1736263137485,2.83237,3530.6,3528.0,1.6378]
[1736263137486,4.83409051,3530.7,3528.0,1.6378]
[1736263137657,0.55329309,3531.1,3528.6,35.0]
[1736263137856,0.55,3530.1,3528.0,1.6378]
[1736263138056,2.83321,3529.6,3527.1,1.6161]
[1736263138284,2.83375,3528.9,3527.3,2.83498]
[1736263138489,0.55,3529.1,3527.4,0.02834395]
[1736263138672,1.583,3528.1,3526.2,1.6161]
[1736263138983,1.5755,3528.1,3527.0,2.83525]
[1736263139184,1.5755,3528.1,3527.1,0.02834682]
[1736263139390,1.5755,3528.1,3526.6,35.0]
[1736263139745,0.55,3528.0,3526.6,35.0]
[1736263139996,1.73305,3528.1,3525.1,2.83673]
[1736263139997,4.83409051,3527.6,3525.1,2.83673]
[1736263140169,2.992,3528.1,3525.9,2.83613]
[1736263140170,4.83409051,3527.1,3525.9,2.83613]
[1736263140496,0.15755,3528.1,3526.0,0.02835892]
[1736263140695,2.83357,3529.2,3524.9,7.67104051]
[1736263140696,4.83409051,3528.7,3525.8,1.6026]
[1736263140901,4.83409051,3528.7,3526.4,3.0]
[1736263141209,4.83409051,3528.2,3525.8,1.5951]
[1736263141394,0.57408289,3529.1,3525.8,1.5951]
[1736263141395,4.83409051,3527.6,3525.8,1.5951]
[1736263141596,0.55,3527.5,3525.3,2.83656]
[1736263141895,1.5112,3527.0,3524.5,1.5144]
[1736263142093,2.83554,3526.7,3525.1,2.83677]
[1736263142299,2.83554,3526.7,3523.6,1.5879]
[1736263142300,4.83409051,3526.6,3523.6,1.5879]
[1736263142501,4.83409051,3526.1,3524.1,2.83752]
[1736263142800,4.83409051,3526.1,3523.6,1.5879]
[1736263142801,0.55,3526.0,3524.2,2.83751]
[1736263142999,1.646,3526.5,3524.2,0.02836875]
[1736263143297,1.646,3526.5,3523.1,0.01]
[1736263143298,1.646,3527.2,3525.2,1.5879]
[1736263143498,1.646,3527.2,3526.2,2.83591]
[1736263143799,1.646,3527.2,3525.6,2.83634]
[1736263143987,6.48009051,3527.2,3525.0,1.6378]
[1736263144211,4.83409051,3527.7,3526.3,2.83578]
[1736263144516,0.00137365,3526.5,3525.3,2.83663]
[1736263144720,0.00137365,3526.5,3525.0,1.6378]
[1736263144721,4.82796416,3527.7,3525.4,0.0283586]
[1736263144864,0.64617642,3527.6,3525.5,3.0]
[1736263145097,1.6338,3527.9,3526.8,0.015]
[1736263145323,1.6338,3527.9,3527.6,0.015]
[1736263145523,1.6338,3527.9,3527.6,0.0075]
[1736263146040,1.6338,3527.9,3526.6,0.015]
[1736263146041,0.55,3527.8,3526.6,0.015]
[1736263146248,2.83495,3527.4,3526.6,0.015]
[1736263146397,1.6338,3527.9,3526.6,0.015]
[1736263146398,0.55,3527.0,3526.6,0.0075]
[1736263146597,0.55,3527.0,3524.0,2.83761]
[1736263146598,0.55,3526.6,3524.4,1.6314]
[1736263146917,0.55,3526.4,3524.8,2.83698]
[1736263147121,4.48493,3526.5,3523.8,1.5787]
[1736263147322,4.48493,3526.5,3524.3,2.83737]
[1736263147323,1.6417,3526.5,3524.3,2.83737]
[1736263147506,1.6417,3526.5,3525.0,0.0075]
[1736263147712,1.6417,3526.5,3525.2,2.8367]
[1736263147923,1.6417,3526.5,3524.9,35.0]
[1736263147924,2.83617,3525.9,3523.9,2.8377]
[1736263148138,0.55,3525.6,3523.7,0.29580779]
[1736263148363,0.55,3525.6,3524.0,2.83767]
[1736263148519,4.83409051,3525.2,3523.7,0.29580779]
[1736263148848,2.83729,3524.5,3523.7,0.29580779]
[1736263149137,2.8378,3523.9,3523.2,0.01]
[1736263149339,4.83409051,3525.3,3523.2,0.01]
[1736263149512,0.5653293,3525.6,3523.2,0.03838695]
[1736263149720,2.83681,3525.1,3523.5,2.83803]
[1736263150040,4.83409051,3525.3,3523.6,35.02837632]
[1736263150258,1.6314,3525.2,3523.6,35.0]
[1736263150458,2.83614,3526.0,3523.2,0.01]
[1736263150459,4.83409051,3526.5,3525.1,0.0075]
[1736263150606,1.6314,3526.2,3524.1,2.8376]
[1736263150805,1.6314,3526.2,3523.7,1.6266]
[1736263150806,1.6314,3526.2,3523.8,2.83784]
[1736263151028,1.6314,3526.2,3525.6,0.015]
[1736263151242,1.09306971,3527.9,3525.6,0.015]
[1736263151243,4.83409051,3527.1,3526.1,0.015]
[1736263151417,1.6314,3527.0,3526.1,0.015]
[1736263151602,1.6314,3527.0,3526.5,2.8356]
[1736263151803,1.79454,3527.0,3526.6,35.0]
[1736263152011,1.79454,3527.0,3524.6,1.5964]
[1736263152205,4.83409051,3526.6,3525.6,2.83635]
[1736263152410,4.83409051,3526.6,3525.7,35.0]
[1736263152648,0.55,3526.5,3525.0,0.015]
[1736263152844,2.2154,3526.0,3525.0,0.0075]
[1736263153091,2.2154,3526.0,3524.5,0.61672254]
[1736263153092,4.83409051,3525.1,3524.5,0.61672254]
[1736263153287,4.83409051,3525.1,3523.2,0.01]
[1736263153487,1.6654,3524.9,3523.7,2.8379]
[1736263153785,1.6579,3524.9,3524.8,0.0075]
[1736263154348,1.6579,3524.9,3523.6,0.02837638]
[1736263154548,1.6579,3524.9,3523.2,0.01]
[1736263154549,2.83764,3524.1,3523.2,0.01]
[1736263154798,0.55,3523.9,3523.2,0.01]
[1736263154962,5.989,3525.2,3523.2,0.01]
[1736263154963,3.38824,3523.3,3523.2,0.01]
[1736263155288,3.38824,3523.3,3521.4,1.16684464]
[1736263155289,3.0,3523.2,3521.4,1.16684464]
[1736263155487,0.53840905,3523.8,3521.4,1.16684464]
[1736263155488,4.83409051,3522.1,3521.4,1.16684464]
[1736263155887,7.67331051,3522.1,3521.4,1.16684464]
[1736263156092,4.82659051,3522.1,3521.4,1.16684464]
[1736263156322,4.83409051,3523.1,3521.4,0.29171116]
[1736263156526,0.53840905,3523.8,3521.6,4.581]
[1736263156670,1.5813,3524.1,3522.6,2.83878]
[1736263156868,1.5786,3524.8,3524.1,0.015]
[1736263157107,4.83409051,3525.7,3524.1,0.015]
[1736263157367,1.09306971,3526.5,3525.0,35.0]
[1736263157601,1.08556971,3526.8,3525.2,2.83671]
[1736263157808,9.71e-06,3526.8,3526.7,2.83551]
[1736263157965,9.71e-06,3526.8,3526.7,2.85051]
[1736263158172,9.71e-06,3526.8,3526.7,37.85051]
[1736263158820,1.315168,3527.3,3526.9,2.83535]
[1736263158967,10.95165062,3528.3,3528.2,0.015]
[1736263158968,1.5984,3528.3,3528.2,0.015]
[1736263159166,4.83409051,3528.8,3527.7,2.83469]
[1736263159167,0.0025,3528.4,3527.7,2.83469]
[1736263159372,0.0025,3528.4,3526.7,35.0]
[1736263159613,0.0025,3528.4,3528.2,2.83426]
[1736263159768,0.0025,3528.4,3527.5,2.83486]
[1736263159977,0.0025,3528.4,3527.0,2.83527]
[1736263160310,0.0025,3528.4,3526.7,35.0]
[1736263160472,0.0025,3528.4,3528.2,2.83429]
[1736263160673,1.5448,3529.0,3528.3,0.015]
[1736263160873,6.37889051,3529.7,3528.9,0.015]
[1736263161068,1.5448,3530.4,3529.5,2.83322]
[1736263161368,1.5448,3531.2,3529.6,35.02833283]
[1736263161574,1.5448,3531.2,3531.0,2.832]
[1736263161786,1.5448,3532.1,3530.6,2.83236]
[1736263161990,1.5448,3532.1,3530.8,0.0075]
[1736263162189,1.5373,3532.8,3531.0,0.0075]
[1736263162412,1.5373,3532.8,3532.0,2.83122]
[1736263162710,0.01,3533.4,3532.5,0.0075]
[1736263162711,4.84409051,3533.4,3532.5,0.0075]
[1736263162911,4.84409051,3533.4,3532.1,2.83867]
[1736263162912,0.01,3533.4,3532.1,2.83867]
[1736263163111,0.01,3533.4,3533.3,2.83771]
[1736263163318,0.01,3533.4,3533.3,37.83771]
[1736263163814,0.01,3533.4,3533.3,0.0075]
[1736263163815,0.0025,3533.4,3533.3,0.0075]
[1736263165097,0.0025,3533.4,3531.8,2.83136]
[1736263165417,0.0025,3533.4,3530.2,2.83265]
[1736263165418,1.6028,3533.3,3530.7,7.14416115]
[1736263165614,0.5425,3533.1,3530.8,0.71441612]
[1736263165770,1.6028,3533.3,3531.6,2.83154]
[1736263165976,1.6028,3533.3,3532.0,2.83123]
[1736263166178,1.6028,3533.3,3531.6,2.83149]
[1736263166411,1.6028,3533.3,3530.7,1.16173493]